{"text_format":"3","workbook":"xlsx","n_sheets":1,"sheets":["Tabelle1"],"read":"whole","date_system":"1900"}

{"sheet":"Tabelle1","index":0,"n_rows":40,"n_cols":7,"rows_kept":40}
["Geschenkangebot"]
["Version 1.0 (Stand 01.03.2024)"]
["Kontaktdaten"]
[]
["Kontaktperson (Name, Vorname)",{"$nulls":3},"Bitte schicken Sie das ausgefüllte Formular per E-Mail an:\r\nmono@ub.uni-stuttgart.de"]
["Telefonnummer"]
["Mailadresse"]
[]
[]
["Titeldaten"]
[]
[null,"Bitte füllen Sie die Tabelle so umfassend wie möglich aus. Für eine schnelle Bearbeitung ist die Bibliothek auf genaue Daten angewiesen. Bei den Feldern mit * handelt es sich um Pflichtfelder."]
["Lfd. Nummer","Verfasser*\n(Autor, Herausgeber)","Titelinformationen*","Auflage (falls vorhanden)","ISBN\r*\n(soweit ermittelbar)","Erscheinungsjahr*","Zusätzliche Angaben"]
[{"$f":"IF(OR(C14<>\"\",B14<>\"\"),1,\"\")","v":{"v":1,"d":"001"}},"Musterfrau","Beispieltitel","Beispielauflage","978-0-123-45678-9",2013]
[{"$f":"IF(OR(C15<>\"\",B15<>\"\"),A14+1,\"\")","v":""}]
[{"$f":"IF(OR(C16<>\"\",B16<>\"\"),A15+1,\"\")","v":""}]
[{"$f":"IF(OR(C17<>\"\",B17<>\"\"),A16+1,\"\")","v":""}]
[""]
[""]
[""]
[""]
[""]
[""]
[""]
[""]
[""]
[""]
[""]
[""]
[""]
[""]
[""]
[""]
[""]
[""]
[""]
[""]
[""]
[""]
[""]